bitfinex/quotes_BTCUSD_20240811
["timestamp","ask_amount","ask_price","bid_price","bid_amount"]
[1723402603075,0.0083,60312.0,60311.0,0.94467445]
[1723402603211,0.0083,60312.0,60311.0,0.95867445]
[1723402603412,0.0083,60312.0,60311.0,1.19080445]
[1723402603821,0.0083,60312.0,60311.0,1.07877329]
[1723402604026,0.0083,60312.0,60311.0,0.9580696]
[1723402604453,0.0083,60312.0,60311.0,0.95806956]
[1723402605341,0.0083,60312.0,60311.0,1.19019956]
[1723402605521,0.0083,60312.0,60311.0,1.44668388]
[1723402605722,0.0083,60312.0,60311.0,1.44668024]
[1723402605949,0.0083,60312.0,60311.0,1.37227031]
[1723402606359,0.0083,60312.0,60311.0,1.34827031]
[1723402606530,0.0083,60312.0,60311.0,1.34427031]
[1723402606732,0.0083,60312.0,60311.0,1.42268325]
[1723402607170,0.0083,60312.0,60311.0,1.34827031]
[1723402607511,0.0083,60312.0,60311.0,1.34826958]
[1723402607797,0.0083,60312.0,60311.0,1.36226958]
[1723402608076,0.0083,60312.0,60311.0,1.34826958]
[1723402608285,0.0083,60312.0,60311.0,1.10736619]
[1723402608584,0.0083,60312.0,60311.0,1.29122511]
[1723402608960,0.0083,60312.0,60311.0,1.30041038]
[1723402609166,0.0083,60312.0,60311.0,1.11915316]
[1723402609767,0.0083,60312.0,60311.0,1.47248618]
[1723402610394,0.0083,60312.0,60311.0,1.0887691]
[1723402610599,0.0083,60312.0,60311.0,1.54131918]
[1723402611445,0.0083,60312.0,60311.0,0.69577226]
[1723402611644,0.0083,60312.0,60311.0,0.42270625]
[1723402611817,0.0083,60312.0,60311.0,0.37307779]
[1723402612508,0.0083,60312.0,60311.0,0.35907779]
[1723402612921,0.0083,60312.0,60311.0,0.34507779]
[1723402613122,0.0083,60312.0,60311.0,0.34509213]
[1723402613332,0.0083,60312.0,60311.0,0.35809213]
[1723402613753,0.0083,60312.0,60311.0,0.36809213]
[1723402613969,0.0083,60312.0,60311.0,0.20427721]
[1723402613970,0.496989,60312.0,60311.0,0.20427721]
[1723402614179,0.729115,60312.0,60311.0,0.08182918]
[1723402614389,0.496989,60312.0,60311.0,0.08182918]
[1723402614594,0.496989,60312.0,60311.0,0.09182918]
[1723402614949,0.496989,60312.0,60311.0,0.08182918]
[1723402615154,0.729115,60312.0,60311.0,0.08182918]
[1723402615355,0.729115,60312.0,60311.0,0.08282918]
[1723402615965,0.729115,60312.0,60311.0,0.06982918]
[1723402616362,0.731115,60312.0,60311.0,0.06982918]
[1723402617043,0.724115,60312.0,60311.0,0.06882918]
[1723402617212,0.724115,60312.0,60311.0,0.06982918]
[1723402617418,0.725115,60312.0,60311.0,0.06982918]
[1723402617945,0.725115,60312.0,60311.0,0.06882918]
[1723402620687,0.580325,60311.0,60310.0,0.000913]
[1723402621827,0.952955,60311.0,60310.0,0.000913]
[1723402623272,0.98448004,60311.0,60310.0,0.000913]
[1723402623915,0.75235004,60311.0,60310.0,0.000913]
[1723402624137,0.720825,60311.0,60310.0,0.000913]
[1723402625989,0.722825,60311.0,60310.0,0.000913]
[1723402626192,0.952955,60311.0,60310.0,0.000913]
[1723402627621,0.953955,60311.0,60310.0,0.000913]
[1723402628268,0.001,60311.0,60310.0,0.000913]
[1723402628468,0.117065,60311.0,60310.0,0.000913]
[1723402628702,0.001,60311.0,60310.0,0.000913]
[1723402628898,0.0033,60312.0,60310.0,0.000913]
[1723402629289,0.117065,60311.0,60310.0,0.000913]
[1723402629468,0.348195,60311.0,60310.0,0.000913]
[1723402629667,0.348195,60311.0,60310.0,0.003913]
[1723402629913,0.116065,60311.0,60310.0,0.003913]
[1723402630314,0.116065,60311.0,60310.0,0.004913]
[1723402630517,0.119363,60312.0,60310.0,0.16872792]
[1723402630762,0.119363,60312.0,60311.0,0.1465]
[1723402631550,0.0033,60312.0,60311.0,0.1465]
[1723402632495,0.119363,60312.0,60311.0,0.1475]
[1723402632718,0.119363,60312.0,60311.0,0.0811]
[1723402633022,0.119363,60312.0,60311.0,0.001]
[1723402633373,0.351489,60312.0,60311.0,0.001]
[1723402633611,0.722115,60312.0,60311.0,0.001]
[1723402635533,0.722115,60312.0,60311.0,0.001913]
[1723402636316,0.722115,60312.0,60311.0,0.000913]
[1723402636710,0.724115,60312.0,60311.0,0.000913]
[1723402636943,0.722115,60312.0,60311.0,0.000913]
[1723402637294,0.724115,60312.0,60311.0,0.000913]
[1723402638567,0.722115,60312.0,60311.0,0.000913]
[1723402638760,0.724115,60312.0,60311.0,0.000913]
[1723402638977,0.489989,60312.0,60311.0,0.000913]
[1723402639133,0.0033,60312.0,60311.0,0.000913]
[1723402639335,0.0053,60312.0,60311.0,0.36109292]
[1723402639529,0.0053,60312.0,60311.0,0.24502792]
[1723402640130,0.0033,60312.0,60311.0,0.24502792]
[1723402640479,0.0033,60312.0,60311.0,0.24602792]
[1723402641261,0.0033,60312.0,60311.0,0.36017643]
[1723402641660,0.0033,60312.0,60311.0,0.37004002]
[1723402642878,0.0033,60312.0,60311.0,0.95036502]
[1723402643081,0.0033,60312.0,60311.0,1.18119933]
[1723402643817,0.0033,60312.0,60311.0,1.18105424]
[1723402644018,0.0033,60312.0,60311.0,0.94892424]
[1723402644751,0.0033,60312.0,60311.0,0.94792424]
[1723402644969,0.0033,60312.0,60311.0,0.94892424]
[1723402645178,0.0033,60312.0,60311.0,1.18005424]
[1723402645582,0.0033,60312.0,60311.0,1.19405424]
[1723402646251,0.0033,60312.0,60311.0,1.13722312]
[1723402646650,0.0033,60312.0,60311.0,0.89309312]
[1723402647028,0.0033,60312.0,60311.0,1.13722312]
[1723402647808,0.0033,60312.0,60311.0,1.12322312]
[1723402648016,0.0033,60312.0,60311.0,1.13722312]
[1723402648221,0.0033,60312.0,60311.0,1.12322312]
[1723402648641,0.0033,60312.0,60311.0,0.89109312]
[1723402648895,0.0033,60312.0,60311.0,1.12322312]
[1723402649145,0.0033,60312.0,60311.0,1.12522312]
[1723402649317,0.0033,60312.0,60311.0,1.11122312]
[1723402649527,0.0033,60312.0,60311.0,1.12322312]
[1723402649719,0.0033,60312.0,60311.0,1.13722312]
[1723402649947,0.0033,60312.0,60311.0,1.19405412]
[1723402650360,0.0033,60312.0,60311.0,1.13822312]
[1723402650716,0.0033,60312.0,60311.0,1.13912346]
[1723402654429,0.0033,60312.0,60311.0,1.1389162]
[1723402656524,0.0033,60312.0,60311.0,0.9067862]
[1723402657069,0.0033,60312.0,60311.0,1.1389162]
[1723402657965,0.0033,60312.0,60311.0,1.02421651]
[1723402658164,0.0033,60312.0,60311.0,1.13895978]
[1723402658605,0.0033,60312.0,60311.0,1.13896281]
[1723402659888,0.0033,60312.0,60311.0,1.1388675]
[1723402662223,0.0033,60312.0,60311.0,1.20768288]
[1723402665245,0.0033,60312.0,60311.0,1.20769532]
[1723402666252,0.0033,60312.0,60311.0,1.44982532]
[1723402666453,0.0033,60312.0,60311.0,1.62188721]
[1723402666714,0.0033,60312.0,60311.0,1.69822443]
[1723402666942,0.0033,60312.0,60311.0,1.70822443]
[1723402667144,0.0033,60312.0,60311.0,1.66688721]
[1723402667316,0.0033,60312.0,60311.0,1.76600351]
[1723402667470,0.0033,60312.0,60311.0,1.8146578]
[1723402667922,0.0033,60312.0,60311.0,1.74120307]
[1723402668095,0.0033,60312.0,60311.0,1.66688721]
[1723402668827,0.0033,60312.0,60311.0,1.66710444]
[1723402669061,0.0033,60312.0,60311.0,1.64010444]
[1723402669237,0.0033,60312.0,60311.0,1.28434651]
[1723402669542,0.0033,60312.0,60311.0,1.64015088]
[1723402669943,0.0033,60312.0,60311.0,1.65415088]
[1723402670147,0.0033,60312.0,60311.0,1.63415088]
[1723402670324,0.0033,60312.0,60311.0,1.66069411]
[1723402670529,0.0033,60312.0,60311.0,1.45017098]
[1723402670781,0.0033,60312.0,60311.0,1.33524651]
[1723402670957,0.0033,60312.0,60311.0,1.34924651]
[1723402671155,0.0033,60312.0,60311.0,1.41807564]
[1723402671382,0.0033,60312.0,60311.0,1.53248606]
[1723402671534,0.0033,60312.0,60311.0,1.60679491]
[1723402672342,0.0033,60312.0,60311.0,1.71002858]
[1723402673161,0.0033,60312.0,60311.0,1.6855013]
[1723402673569,0.0033,60312.0,60311.0,1.73927567]
[1723402673790,0.0033,60312.0,60311.0,1.79825242]
[1723402673991,0.0033,60312.0,60311.0,1.81225242]
[1723402674189,0.0033,60312.0,60311.0,1.62619245]
[1723402674617,0.0033,60312.0,60311.0,1.64019245]
[1723402675288,0.0033,60312.0,60311.0,1.81224968]
[1723402675488,0.0033,60312.0,60311.0,1.82624968]
[1723402675711,0.0033,60312.0,60311.0,2.05837968]
[1723402675890,0.0033,60312.0,60311.0,1.81224968]
[1723402676089,0.0033,60312.0,60311.0,1.56430374]
[1723402676353,0.0033,60312.0,60311.0,1.79643374]
[1723402676588,0.0033,60312.0,60311.0,1.67875052]
[1723402676764,0.0033,60312.0,60311.0,1.91088052]
[1723402677602,0.0033,60312.0,60311.0,2.05843937]
[1723402678435,0.0033,60312.0,60311.0,1.98913914]
[1723402679041,0.0033,60312.0,60311.0,1.99908594]
[1723402679445,0.0033,60312.0,60311.0,1.87520136]
[1723402679646,0.0033,60312.0,60311.0,1.96506]
[1723402681174,0.0033,60312.0,60311.0,1.73293]
[1723402681404,0.0033,60312.0,60311.0,1.71298589]
[1723402681605,0.0033,60312.0,60311.0,1.67998589]
[1723402681759,0.0033,60312.0,60311.0,1.95119214]
[1723402681960,0.0033,60312.0,60311.0,1.85204712]
[1723402682324,0.0033,60312.0,60311.0,1.95119214]
[1723402682499,0.0033,60312.0,60311.0,1.85204712]
[1723402682868,0.0033,60312.0,60311.0,1.97600205]
[1723402683073,0.0033,60312.0,60311.0,1.97599905]
[1723402683272,0.0033,60312.0,60311.0,1.99599905]
[1723402683429,0.0033,60312.0,60311.0,1.89504412]
[1723402683836,0.0033,60312.0,60311.0,2.12717412]
[1723402685839,0.0033,60312.0,60311.0,2.27593456]
[1723402686623,0.00083,60317.0,60316.0,1.066495]
[1723402686828,0.00832,60320.0,60319.0,0.272949]
[1723402687028,0.00832,60320.0,60319.0,1.55980112]
[1723402687233,0.00832,60320.0,60319.0,1.20487914]
[1723402687452,0.00832,60320.0,60319.0,1.4357867]
[1723402687656,0.00832,60320.0,60319.0,1.6678857]
[1723402688459,0.00832,60320.0,60319.0,1.6908857]
[1723402688641,0.00832,60320.0,60319.0,1.7048857]
[1723402688862,0.00832,60320.0,60319.0,1.7188857]
[1723402689960,0.00832,60320.0,60319.0,1.72892415]
[1723402690161,0.00832,60320.0,60319.0,1.37399937]
[1723402690387,0.00832,60320.0,60319.0,1.96155983]
[1723402691551,0.00832,60320.0,60319.0,1.69656359]
[1723402691667,0.00832,60320.0,60319.0,1.6837708]
[1723402691903,0.08802,60320.0,60319.0,1.3367718]
[1723402692108,0.08802,60320.0,60319.0,0.63661565]
[1723402692310,0.08802,60320.0,60319.0,0.88271465]
[1723402692506,0.00832,60320.0,60319.0,1.12881365]
[1723402692706,0.00832,60320.0,60319.0,1.0950565]
[1723402693146,0.00832,60320.0,60319.0,1.11986518]
[1723402693547,0.00832,60320.0,60319.0,1.20586518]
[1723402693974,0.00832,60320.0,60319.0,1.21986518]
[1723402694174,0.00832,60320.0,60319.0,1.39191466]
[1723402694330,0.00832,60320.0,60319.0,1.36392186]
[1723402694553,0.00832,60320.0,60319.0,1.37792186]
[1723402695691,0.00832,60320.0,60319.0,1.39192186]
[1723402696215,0.00832,60320.0,60319.0,1.31748736]
[1723402696640,0.00832,60320.0,60319.0,1.39192304]
[1723402696841,0.00832,60320.0,60319.0,1.62402204]
[1723402696999,0.05227558,60322.0,60321.0,0.580227]
[1723402697201,0.05227558,60322.0,60321.0,0.86248932]
[1723402697399,0.05227558,60322.0,60321.0,0.97811063]
[1723402697862,0.05227558,60322.0,60321.0,0.97815649]
[1723402698202,0.05227558,60322.0,60321.0,1.00615649]
[1723402698507,0.21382204,60322.0,60321.0,1.00615649]
[1723402698710,0.21382204,60322.0,60321.0,0.95653232]
[1723402699008,0.21382204,60322.0,60321.0,0.88771357]
[1723402699374,0.13197558,60322.0,60321.0,0.88771357]
[1723402699578,0.13197558,60322.0,60321.0,1.11980457]
[1723402700732,0.13197558,60322.0,60321.0,1.00413292]
[1723402701104,0.13197558,60322.0,60321.0,1.11920168]
[1723402701312,0.13197558,60322.0,60321.0,0.88711068]
[1723402701513,0.13197558,60322.0,60321.0,0.65501968]
[1723402704283,0.13197558,60322.0,60321.0,0.53995092]
[1723402704485,0.13197558,60322.0,60321.0,0.65446731]
[1723402705263,0.13197558,60322.0,60321.0,0.30633131]
[1723402705462,0.13197558,60322.0,60321.0,0.14251639]
[1723402705829,0.13197558,60322.0,60321.0,0.028]
[1723402706040,0.13280558,60322.0,60321.0,0.028]
[1723402706157,0.13280558,60322.0,60321.0,0.014]
[1723402706349,0.13280558,60322.0,60321.0,0.025]
[1723402706557,0.13280558,60322.0,60321.0,0.011]
[1723402706822,0.13280558,60322.0,60321.0,0.02]
[1723402706976,0.13280558,60322.0,60321.0,0.009]
[1723402707314,0.13280558,60322.0,60321.0,0.01159188]
[1723402707887,0.13280558,60322.0,60321.0,0.00859188]
[1723402708087,0.13280558,60322.0,60320.0,0.116047]
[1723402708310,0.1471,60320.0,60319.0,0.000913]
[1723402708510,0.227,60320.0,60319.0,0.000913]
[1723402709376,0.227,60320.0,60319.0,0.003913]
[1723402709567,0.227,60320.0,60319.0,0.000913]
[1723402709775,0.1471,60320.0,60319.0,0.000913]
[1723402710037,0.1471,60320.0,60319.0,0.003913]
[1723402710232,0.1471,60320.0,60319.0,0.004913]
[1723402710642,0.1471,60320.0,60319.0,0.120962]
[1723402710841,0.1471,60320.0,60319.0,0.23595252]
[1723402711385,0.1471,60320.0,60319.0,0.23595028]
[1723402713198,0.1471,60320.0,60319.0,0.23495028]
[1723402713375,0.1471,60320.0,60319.0,0.11890128]
[1723402713576,0.1471,60320.0,60319.0,0.12190128]
[1723402714102,0.1471,60320.0,60319.0,0.11890128]
[1723402714232,0.1471,60320.0,60319.0,0.12290128]
[1723402714449,0.1471,60320.0,60319.0,0.11990128]
[1723402714719,0.1471,60320.0,60319.0,0.12190128]
[1723402714920,0.1471,60320.0,60319.0,0.11581477]
[1723402715067,0.1471,60320.0,60319.0,0.11981477]
[1723402715422,0.1471,60320.0,60319.0,0.12581477]
[1723402715616,0.1471,60320.0,60319.0,0.11981477]
[1723402715823,0.1471,60320.0,60319.0,0.12681477]
[1723402716332,0.1471,60320.0,60319.0,0.12281477]
[1723402716747,0.1471,60320.0,60319.0,0.12781477]
[1723402717277,0.1471,60320.0,60319.0,0.12081477]
[1723402717470,0.1471,60320.0,60319.0,0.12681477]
[1723402717715,0.1471,60320.0,60319.0,0.12181477]
[1723402717935,0.1471,60320.0,60319.0,0.11981477]
[1723402718167,0.1471,60320.0,60319.0,0.12681477]
[1723402719034,0.1471,60320.0,60319.0,0.12676497]
[1723402719479,0.1471,60320.0,60319.0,0.29057989]
[1723402719684,0.00083,60322.0,60321.0,0.116045]
[1723402719853,0.00083,60322.0,60321.0,0.76960289]
[1723402720027,0.00083,60322.0,60321.0,1.00169389]
[1723402720496,0.00083,60322.0,60321.0,1.23378489]
[1723402720723,0.00083,60322.0,60321.0,1.30260551]
[1723402721575,0.00083,60322.0,60321.0,0.47553251]
[1723402721785,0.00083,60322.0,60321.0,0.29066689]
[1723402721999,0.00083,60322.0,60321.0,0.42146965]
[1723402722221,0.00083,60322.0,60321.0,0.29142465]
[1723402722415,0.00083,60322.0,60321.0,0.40746965]
[1723402722647,0.00083,60322.0,60321.0,0.42146965]
[1723402723088,0.00083,60322.0,60321.0,0.65356065]
[1723402723299,0.00083,60322.0,60321.0,0.40946965]
[1723402723692,0.00083,60322.0,60321.0,0.42346965]
[1723402724093,0.00083,60322.0,60321.0,0.29342465]
[1723402724573,0.00083,60322.0,60321.0,0.30542465]
[1723402724695,0.00083,60322.0,60321.0,0.42146965]
[1723402725207,0.00083,60322.0,60321.0,0.40946965]
[1723402725417,0.00083,60322.0,60321.0,0.29385992]
[1723402725642,0.00083,60322.0,60321.0,0.4083679]
[1723402725843,0.00083,60322.0,60321.0,0.3943679]
[1723402726052,0.00083,60322.0,60321.0,0.4083679]
[1723402726253,0.00083,60322.0,60321.0,0.3943679]
[1723402726597,0.00083,60322.0,60321.0,0.4083679]
[1723402726829,0.00083,60322.0,60321.0,0.7159589]
[1723402727029,0.00083,60322.0,60321.0,0.4838679]
[1723402727178,0.00083,60322.0,60321.0,0.4083679]
[1723402728218,0.00083,60322.0,60321.0,0.7055589]
[1723402728591,0.00083,60322.0,60321.0,0.7810589]
[1723402729000,0.00083,60322.0,60321.0,0.78072029]
[1723402729332,0.00083,60322.0,60321.0,0.70762029]
[1723402729495,0.00083,60322.0,60321.0,0.28585992]
[1723402729701,0.00083,60322.0,60321.0,0.64212181]
[1723402730120,0.00083,60322.0,60321.0,0.63597793]
[1723402730379,0.00083,60322.0,60321.0,0.64397793]
[1723402730596,0.14723,60322.0,60321.0,0.12202701]
[1723402730808,0.116873,60322.0,60321.0,0.13202701]
[1723402731009,0.116873,60322.0,60321.0,0.12402701]
[1723402731194,0.116873,60322.0,60321.0,0.13202701]
[1723402732319,0.00083,60322.0,60321.0,0.41188693]
[1723402732558,0.00083,60322.0,60321.0,0.47698693]
[1723402732775,0.00083,60322.0,60321.0,0.70902155]
[1723402733943,0.00083,60322.0,60321.0,0.77622155]
[1723402734134,0.00083,60322.0,60321.0,0.77422155]
[1723402734334,0.00083,60322.0,60321.0,1.02031255]
[1723402734625,0.00083,60322.0,60321.0,1.01231255]
[1723402735376,0.00083,60322.0,60321.0,1.161035]
[1723402735783,0.00083,60322.0,60321.0,1.21070024]
[1723402736012,0.00083,60322.0,60321.0,1.14280024]
[1723402736224,0.00083,60322.0,60321.0,0.94692016]
[1723402736393,0.00083,60322.0,60321.0,1.13113474]
[1723402737028,0.00083,60322.0,60321.0,1.14513474]
[1723402737202,0.00083,60322.0,60321.0,1.11713474]
[1723402737580,0.00083,60322.0,60321.0,1.14413474]
[1723402737824,0.00083,60322.0,60321.0,1.13013474]
[1723402738224,0.00083,60322.0,60321.0,1.14413474]
[1723402738626,0.00083,60322.0,60321.0,0.96192016]
[1723402739090,0.00083,60322.0,60321.0,0.94892016]
[1723402739292,0.00083,60322.0,60321.0,0.96192016]
[1723402739985,0.00083,60322.0,60321.0,1.22884379]
[1723402740139,0.00083,60322.0,60321.0,1.56253946]
[1723402740339,0.00083,60322.0,60321.0,1.44939294]
[1723402740540,0.00083,60322.0,60321.0,1.63331769]
[1723402741292,0.00083,60322.0,60321.0,1.64171769]
[1723402741410,0.00083,60322.0,60321.0,1.66124174]
[1723402742031,0.00083,60322.0,60321.0,1.64724171]
[1723402742702,0.00083,60322.0,60321.0,1.63424171]
[1723402742875,0.00083,60322.0,60321.0,1.89433271]
[1723402743531,0.00832,60327.0,60321.0,1.89433271]
[1723402743532,0.00832,60327.0,60326.0,1.648296]
[1723402743720,0.00832,60327.0,60326.0,2.4343277]
[1723402744035,0.00832,60327.0,60326.0,2.06601757]
[1723402744169,0.00832,60327.0,60326.0,2.26623591]
[1723402744589,0.00832,60327.0,60326.0,2.12057527]
[1723402745001,0.00832,60327.0,60326.0,2.13045024]
[1723402745238,0.00832,60327.0,60326.0,2.42478206]
[1723402745449,0.00832,60327.0,60326.0,2.27912142]
[1723402745734,2e-08,60329.0,60328.0,1.216588]
[1723402745964,0.0083,60333.0,60332.0,0.520373]
[1723402746201,0.0083,60333.0,60332.0,2.21105489]
[1723402746906,0.0083,60333.0,60332.0,2.08723127]
[1723402747141,0.0083,60333.0,60332.0,2.23899116]
[1723402747425,0.0083,60340.0,60339.0,0.822077]
[1723402747658,0.0083,60340.0,60339.0,1.43429095]
[1723402747911,0.0083,60340.0,60339.0,1.46535259]
[1723402748149,0.0083,60340.0,60339.0,1.38655848]
[1723402748441,0.0083,60340.0,60339.0,1.40669896]
[1723402748961,0.0083,60340.0,60339.0,1.39669896]
[1723402749457,0.0712,60340.0,60339.0,0.63409332]
[1723402749683,0.0712,60340.0,60339.0,0.3039664]
[1723402749950,0.0083,60340.0,60339.0,0.8627104]
[1723402750194,0.0083,60340.0,60339.0,0.9125104]
[1723402750449,0.0083,60340.0,60339.0,0.9265104]
[1723402750973,0.0083,60340.0,60339.0,0.9125104]
[1723402751195,0.0083,60340.0,60339.0,1.0104949]
[1723402751603,0.0083,60340.0,60339.0,1.01042975]
[1723402751734,0.0083,60340.0,60339.0,1.01042989]
[1723402752316,0.0083,60340.0,60339.0,1.02442989]
[1723402752510,0.0083,60340.0,60339.0,1.03842989]
[1723402753312,0.0083,60340.0,60339.0,0.80640789]
[1723402753517,0.0083,60340.0,60339.0,0.6306884]
[1723402754103,0.0083,60340.0,60339.0,0.8627104]
[1723402754281,0.0083,60340.0,60339.0,1.00721631]
[1723402754459,0.0083,60340.0,60339.0,0.99721631]
[1723402754666,0.0083,60340.0,60339.0,0.97421631]
[1723402754960,0.0083,60340.0,60339.0,0.8627104]
[1723402755425,0.0083,60340.0,60339.0,0.99733736]
[1723402755836,0.0083,60340.0,60339.0,0.97433736]
[1723402756034,0.0083,60340.0,60339.0,1.05413736]
[1723402761644,0.0083,60340.0,60339.0,0.5499884]
[1723402761846,0.0083,60340.0,60339.0,0.66183095]
[1723402762175,0.0083,60340.0,60339.0,0.5499884]
[1723402762378,0.0083,60340.0,60339.0,0.66184525]
[1723402763005,0.0083,60340.0,60339.0,0.73844525]
[1723402763207,0.0083,60340.0,60339.0,1.03236725]
[1723402763624,0.0083,60340.0,60339.0,0.97046725]
[1723402765322,0.0083,60340.0,60339.0,0.8586104]
[1723402765524,0.0083,60340.0,60339.0,0.97026091]
[1723402766343,0.0083,60340.0,60339.0,0.66163891]
[1723402766553,0.0083,60340.0,60339.0,0.89366091]
[1723402766755,0.0083,60340.0,60339.0,1.03636091]
[1723402768343,0.0083,60340.0,60339.0,1.10516204]
[1723402768738,0.0083,60340.0,60339.0,1.10516175]
[1723402769479,0.0083,60340.0,60339.0,1.12816175]
[1723402769685,0.0083,60340.0,60339.0,1.13816175]
[1723402771971,0.0083,60340.0,60339.0,1.14016175]
[1723402772178,0.0083,60340.0,60339.0,1.2117324]
[1723402772383,0.0083,60340.0,60339.0,1.64548615]
[1723402772732,0.0083,60340.0,60339.0,1.66547806]
[1723402773177,0.0083,60340.0,60339.0,1.65147806]
[1723402773595,0.0083,60340.0,60339.0,1.63747806]
[1723402773805,0.0083,60340.0,60339.0,1.65147287]
[1723402773972,0.0083,60340.0,60339.0,1.66547287]
[1723402774379,0.0083,60340.0,60339.0,1.65147287]
[1723402774586,0.0083,60340.0,60339.0,1.66547287]
[1723402775881,0.0083,60340.0,60339.0,1.3117324]
[1723402776097,0.0083,60340.0,60339.0,1.66634349]
[1723402777459,0.0083,60340.0,60339.0,1.67464349]
[1723402777860,0.0083,60340.0,60339.0,1.67452793]
[1723402778058,0.0083,60340.0,60339.0,1.73432793]
[1723402778282,0.0083,60340.0,60339.0,1.72602793]
[1723402778932,0.0083,60340.0,60339.0,1.63902793]
[1723402779601,0.0083,60340.0,60339.0,1.46643368]
[1723402779806,0.0083,60340.0,60339.0,1.63842255]
[1723402780003,0.0083,60340.0,60339.0,1.68142255]
[1723402780204,0.0083,60340.0,60339.0,1.7309654]
[1723402781209,0.0083,60340.0,60339.0,0.38385668]
[1723402781404,0.1509,60340.0,60339.0,0.30492065]
[1723402781605,0.1509,60340.0,60339.0,0.42093165]
[1723402782212,0.1509,60340.0,60339.0,0.30492065]
[1723402782409,0.1509,60340.0,60339.0,0.29092065]
[1723402783024,0.0083,60340.0,60339.0,0.65295365]
[1723402783253,0.0083,60340.0,60339.0,0.87097565]
[1723402783485,0.0083,60340.0,60339.0,0.93977868]
[1723402783869,0.0083,60340.0,60339.0,1.20195099]
[1723402784098,0.0083,60340.0,60339.0,1.69805663]
[1723402784304,0.0083,60340.0,60339.0,1.62574235]
[1723402784510,0.0083,60340.0,60339.0,1.72482805]
[1723402784712,0.0083,60340.0,60339.0,1.72502988]
[1723402784915,0.0083,60340.0,60339.0,1.42777398]
[1723402785241,0.0083,60340.0,60339.0,1.72480621]
[1723402785371,0.0083,60340.0,60339.0,1.73250621]
[1723402785571,0.0083,60340.0,60339.0,1.4426945]
[1723402785810,0.0083,60340.0,60339.0,1.3639945]
[1723402786014,0.0083,60340.0,60339.0,1.19200817]
[1723402786332,0.0083,60340.0,60339.0,1.10351035]
[1723402786573,0.0083,60340.0,60339.0,1.11751035]
[1723402786787,0.0083,60340.0,60339.0,0.92366992]
[1723402786973,0.0083,60340.0,60339.0,1.11651944]
[1723402787168,0.0083,60340.0,60339.0,1.20501726]
[1723402787822,0.0083,60340.0,60339.0,1.20101726]
[1723402788021,0.0083,60340.0,60339.0,1.20503489]
[1723402788212,0.0083,60340.0,60339.0,1.13051944]
[1723402789242,0.0083,60340.0,60339.0,1.22991875]
[1723402789546,0.0083,60340.0,60339.0,1.21591875]
[1723402789781,0.0083,60340.0,60339.0,1.22991875]
[1723402790390,0.0083,60340.0,60339.0,1.23074433]
[1723402791413,0.0083,60340.0,60339.0,1.23060576]
[1723402792472,0.0083,60340.0,60339.0,1.40260302]
[1723402794438,0.0083,60340.0,60339.0,1.05106923]
[1723402794636,0.0083,60340.0,60339.0,1.40279262]
[1723402798617,0.0083,60340.0,60339.0,1.40281056]
[1723402799205,0.0083,60340.0,60339.0,1.30339331]
[1723402800207,0.0083,60340.0,60339.0,1.67481531]
[1723402800411,0.0083,60340.0,60339.0,1.61936099]
[1723402800615,0.0083,60340.0,60339.0,1.6756032]
[1723402800860,0.0083,60340.0,60339.0,1.6756027]
[1723402801127,0.0083,60340.0,60339.0,1.27158903]
[1723402801309,0.0083,60340.0,60339.0,1.44357946]
[1723402801466,0.0083,60340.0,60339.0,1.67560146]
[1723402801681,0.00581795,60340.0,60339.0,1.44357946]
[1723402801892,0.00581795,60340.0,60339.0,1.67560146]
[1723402803583,0.00581795,60340.0,60339.0,1.38167946]
[1723402803859,0.00581795,60340.0,60339.0,1.30417947]
[1723402804078,0.00581795,60340.0,60339.0,1.05238904]
[1723402804457,0.00581795,60340.0,60339.0,1.12705048]
[1723402805637,0.00581795,60340.0,60339.0,1.12603943]
[1723402806267,0.00581795,60340.0,60339.0,1.26773943]
[1723402807409,0.00581795,60340.0,60339.0,1.26865235]
[1723402808377,0.00581795,60340.0,60339.0,1.50067435]
[1723402808573,0.00581795,60340.0,60339.0,1.52367435]
[1723402809300,0.00581795,60340.0,60339.0,1.62110836]
[1723402809502,0.00581795,60340.0,60339.0,1.72053234]
[1723402809659,0.00581795,60340.0,60339.0,1.44911258]
[1723402810381,0.00581795,60340.0,60339.0,1.62111393]
[1723402810719,0.00581795,60340.0,60339.0,1.57361826]
[1723402810981,0.00581795,60340.0,60339.0,1.8594129]
[1723402811175,0.00581795,60340.0,60339.0,1.88035125]
[1723402811379,0.00331795,60340.0,60339.0,1.88035125]
[1723402811583,0.00331795,60340.0,60339.0,2.17904232]
[1723402812197,0.00331795,60340.0,60339.0,1.84722032]
[1723402812366,0.00331795,60340.0,60339.0,1.98144912]
[1723402812572,0.00331795,60340.0,60339.0,2.00944912]
[1723402812779,0.00331795,60340.0,60339.0,1.99544912]
[1723402813238,0.00331795,60340.0,60339.0,1.99944912]
[1723402813387,0.00331795,60340.0,60339.0,1.27221466]
[1723402813609,0.26112695,60340.0,60339.0,0.35856502]
[1723402813831,0.14511795,60340.0,60339.0,0.30376718]
[1723402814200,0.14511795,60340.0,60339.0,0.17781492]
[1723402814201,0.26112695,60340.0,60339.0,0.17781492]
[1723402814402,0.14511795,60340.0,60339.0,0.28843986]
[1723402814582,0.26112695,60340.0,60339.0,0.30243986]
[1723402814773,0.26112695,60340.0,60339.0,0.30243881]
[1723402814974,0.26112695,60340.0,60339.0,0.28843881]
[1723402815207,0.49314495,60340.0,60339.0,0.12462389]
[1723402815422,0.75691255,60340.0,60339.0,0.017]
[1723402815600,0.98893055,60340.0,60339.0,0.003]
[1723402815900,1.03858736,60340.0,60339.0,0.014913]
[1723402816051,1.03858736,60340.0,60339.0,0.003913]
[1723402816291,0.98893055,60340.0,60339.0,0.009913]
[1723402816696,0.98893055,60340.0,60339.0,0.003913]
[1723402817616,0.98930345,60340.0,60339.0,0.000913]
[1723402818012,0.99130345,60340.0,60339.0,0.000913]
[1723402818417,0.99130344,60340.0,60339.0,0.000913]
[1723402820281,0.95918095,60340.0,60339.0,0.000913]
[1723402824628,1.32337612,60340.0,60339.0,0.000913]
[1723402825073,1.38082417,60340.0,60339.0,0.000913]
[1723402825271,1.33237612,60340.0,60339.0,0.000913]
[1723402825876,1.33137612,60340.0,60339.0,0.000913]